bitfinex-derivatives/quotes_SOLF0:USTF0_20260222
["timestamp","ask_amount","ask_price","bid_price","bid_amount"]
[1771729461459,21.71701126,85.038,84.941,6.20396143]
[1771729461460,3.54451788,84.98,84.941,6.20396143]
[1771729463060,3.54451788,84.98,84.895,29.0301743]
[1771729463061,3.54451788,84.98,84.923,6.20043709]
[1771729463260,3.54451788,84.98,84.88,11.64581126]
[1771729463261,3.54451788,84.95,84.913,6.20158128]
[1771729463460,3.54451788,84.95,84.88,11.64581126]
[1771729463461,3.54451788,84.94,84.891,6.20158128]
[1771729466766,179.25383791,84.998,84.885,10.6067]
[1771729466767,3.54451788,84.95,84.901,6.16075412]
[1771729468966,3.54451788,84.94,84.901,6.16075412]
[1771729472465,3.54451788,84.95,84.901,6.16075412]
[1771729473772,10.5976,84.959,84.901,6.16075412]
[1771729475971,3.54451788,84.95,84.901,6.16075412]
[1771729480269,10.5976,84.959,84.901,6.16075412]
[1771729482776,3.54451788,84.95,84.901,6.16075412]
[1771729483274,3.54451788,84.94,84.901,6.16075412]
[1771729492282,10.5976,84.959,84.901,6.16075412]
[1771729492485,3.54451788,84.95,84.901,6.16075412]
[1771729496996,3.54451788,84.94,84.901,6.16075412]
[1771729505995,3.54955915,84.94,84.901,6.16075412]
[1771729508193,8.9820488,84.939,84.901,6.16075412]
[1771729508399,3.54955915,84.94,84.901,6.16075412]
[1771729508700,8.98212216,84.939,84.901,6.16075412]
[1771729509003,3.54955915,84.95,84.901,6.16075412]
[1771729509196,8.98243476,84.949,84.901,6.16075412]
[1771729509397,8.98243476,84.948,84.901,6.16075412]
[1771729509595,8.98243476,84.947,84.901,6.16075412]
[1771729509799,8.98243476,84.946,84.901,6.16075412]
[1771729509999,8.98243476,84.945,84.901,6.16075412]
[1771729510201,8.98243476,84.944,84.901,6.16075412]
[1771729510400,3.54955915,84.95,84.901,6.16075412]
[1771729510590,8.98146592,84.949,84.901,6.16075412]
[1771729510790,8.98146592,84.948,84.901,6.16075412]
[1771729511094,8.98146592,84.947,84.901,6.16075412]
[1771729511294,8.98146592,84.946,84.901,6.16075412]
[1771729511494,8.98146592,84.945,84.901,6.16075412]
[1771729511691,10.88776803,84.964,84.91,3.54955915]
[1771729511896,8.98257522,84.963,84.921,6.21688334]
[1771729512096,8.98257522,84.962,84.921,6.21688334]
[1771729512296,8.98257522,84.961,84.921,6.21688334]
[1771729512595,8.98257522,84.96,84.921,6.21688334]
[1771729512796,8.98257522,84.959,84.921,6.21688334]
[1771729513104,8.98257522,84.958,84.921,6.21688334]
[1771729513300,8.98257522,84.957,84.921,6.21688334]
[1771729513500,8.98257522,84.956,84.921,6.21688334]
[1771729513700,8.98257522,84.955,84.921,6.21688334]
[1771729513900,8.98257522,84.954,84.921,6.21688334]
[1771729514103,3.54955915,84.96,84.921,6.21688334]
[1771729514301,8.98188377,84.959,84.921,6.21688334]
[1771729514501,8.98188377,84.958,84.921,6.21688334]
[1771729514707,8.98188377,84.957,84.921,6.21688334]
[1771729514905,8.98188377,84.956,84.921,6.21688334]
[1771729515094,8.98188377,84.955,84.921,6.21688334]
[1771729515297,3.54955915,84.96,84.921,6.21688334]
[1771729515498,8.97980466,84.959,84.921,6.21688334]
[1771729515698,8.97980466,84.958,84.921,6.21688334]
[1771729515894,8.97980466,84.957,84.921,6.21688334]
[1771729516100,8.97980466,84.956,84.921,6.21688334]
[1771729516399,3.54955915,84.96,84.921,6.21688334]
[1771729516605,8.97609472,84.959,84.921,6.21688334]
[1771729516798,8.97609472,84.958,84.921,6.21688334]
[1771729517103,8.97609472,84.957,84.921,6.21688334]
[1771729517407,3.54955915,84.96,84.921,6.21688334]
[1771729517703,8.97657763,84.959,84.921,6.21688334]
[1771729517903,3.54955915,84.96,84.921,6.21688334]
[1771729518098,8.88725049,84.959,84.921,6.21688334]
[1771729518402,3.54955915,84.96,84.921,6.21688334]
[1771729518600,8.88679866,84.959,84.921,6.21688334]
[1771729518800,3.54955915,84.96,84.921,6.21688334]
[1771729518999,8.8868002,84.959,84.921,6.21688334]
[1771729519195,3.54955915,84.96,84.921,6.21688334]
[1771729519400,8.88773237,84.959,84.921,6.21688334]
[1771729519701,3.54955915,84.96,84.921,6.21688334]
[1771729520004,8.88815143,84.959,84.921,6.21688334]
[1771729520205,3.54955915,84.96,84.921,6.21688334]
[1771729521705,14.14585915,84.97,84.921,6.21688334]
[1771729522301,10.5963,84.97,84.921,6.21688334]
[1771729527404,454.83660032,84.977,84.931,6.23331129]
[1771729528109,454.83660032,84.977,84.931,16.83431129]
[1771729528402,454.83660032,84.977,84.941,6.22815367]
[1771729535901,3.54955915,84.98,84.941,6.22815367]
[1771729544715,3.54955915,84.98,84.931,10.601]
[1771729544716,3.54955915,84.97,84.921,6.2473855]
[1771729545020,3.54955915,84.96,84.921,6.2473855]
[1771729545208,3.54955915,84.97,84.921,6.2473855]
[1771729545410,10.5964,84.969,84.921,6.2473855]
[1771729545612,3.54955915,84.96,84.921,6.2473855]
[1771729549726,10.5964,84.969,84.921,6.2473855]
[1771729553130,3.54955915,84.96,84.921,6.2473855]
[1771729558838,10.5964,84.969,84.921,6.2473855]
[1771729558839,3.54955915,84.95,84.921,6.2473855]
[1771729559943,3.54955915,84.94,84.902,6.19238287]
[1771729562937,3.54955915,84.94,84.884,6.19384059]
[1771729563139,3.54955915,84.93,84.884,6.19384059]
[1771729564144,3.54955915,84.92,84.884,6.19384059]
[1771729567745,3.54955915,84.93,84.884,6.19384059]
[1771729567941,3.55110192,84.92,84.884,6.19384059]
[1771729575745,10.88776803,84.972,84.884,6.19384059]
[1771729575746,3.55110192,84.94,84.884,6.19384059]
[1771729575945,3.55110192,84.94,84.891,6.27166947]
[1771729579351,10.599,84.948,84.891,6.27166947]
[1771729579946,8.83806314,84.98,84.836,35.3]
[1771729579947,8.83806314,84.981,84.931,6.28440709]
[1771729580146,3.55110192,84.98,84.931,6.28440709]
[1771729580345,453.34873375,84.988,84.931,6.28440709]
[1771729581348,3.55110192,84.98,84.931,6.28440709]
[1771729582655,453.34873375,84.988,84.931,6.28440709]
[1771729583856,453.34873375,84.988,84.94,3.55110192]
[1771729584757,453.34873375,84.988,84.951,6.28278031]
[1771729584955,453.34873375,84.988,84.96,3.55110192]
[1771729585255,3.55110192,85.01,84.961,6.28278031]
[1771729585457,10.5894,85.024,84.98,3.55110192]
[1771729586054,3.55110192,85.02,84.971,6.28348306]
[1771729590963,3.55110192,85.0,84.955,6.36316701]
[1771729598063,3.55110192,85.01,84.955,6.36316701]
[1771729598668,3.55110192,85.0,84.955,6.36316701]
[1771729598965,3.55110192,85.01,84.961,6.34476697]
[1771729600469,3.55110192,85.0,84.961,6.34476697]
[1771729613071,3.55110192,85.01,84.961,6.34476697]
[1771729613771,3.55110192,85.0,84.961,6.34476697]
[1771729618878,3.55110192,85.01,84.961,6.34476697]
[1771729626281,8.90370688,85.009,84.961,6.34476697]
[1771729626578,11.82483929,85.039,84.961,6.34476697]
[1771729626579,3.55110192,85.0,84.961,6.34476697]
[1771729626885,8.90295152,84.999,84.961,6.34476697]
[1771729627181,3.55110192,85.0,84.961,6.34476697]
[1771729627378,8.90731636,84.999,84.961,6.34476697]
[1771729627581,8.90731636,84.998,84.961,6.34476697]
[1771729627774,8.90731636,84.997,84.961,6.34476697]
[1771729627977,3.55110192,85.0,84.961,6.34476697]
[1771729627978,3.54462154,85.0,84.961,6.34476697]
[1771729628277,8.90628763,84.999,84.961,6.34476697]
[1771729628472,8.90628763,84.998,84.961,6.34476697]
[1771729628782,8.90628763,84.997,84.961,6.34476697]
[1771729628981,8.90628763,84.996,84.961,6.34476697]
[1771729629181,8.90628763,84.995,84.961,6.34476697]
[1771729629385,8.92112922,84.994,84.961,6.34476697]
[1771729629580,8.92112922,84.993,84.961,6.34476697]
[1771729629778,8.92112922,84.992,84.961,6.34476697]
[1771729629981,3.54462154,84.99,84.941,6.20095348]
[1771729630184,8.92016083,84.989,84.941,6.20095348]
[1771729630382,8.92016083,84.988,84.941,6.20095348]
[1771729630677,8.92016083,84.987,84.941,6.20095348]
[1771729630883,10.5933,84.994,84.951,6.2014179]
[1771729631084,8.91710202,84.993,84.951,6.2014179]
[1771729631284,8.91710202,84.992,84.951,6.2014179]
[1771729631485,8.91710202,84.991,84.951,6.2014179]
[1771729631687,8.91710202,84.99,84.951,6.2014179]
[1771729631877,8.91710202,84.989,84.951,6.2014179]
[1771729632087,10.5933,84.994,84.951,6.2014179]
[1771729632282,8.91282866,84.993,84.951,6.2014179]
[1771729632485,10.5933,84.994,84.951,6.2014179]
[1771729632486,8.91282866,84.992,84.951,6.2014179]
[1771729632682,8.91282866,84.991,84.951,6.2014179]
[1771729632984,8.91282866,84.99,84.951,6.2014179]
[1771729633182,10.5933,84.994,84.951,6.2014179]
[1771729633393,8.91137864,84.993,84.951,6.2014179]
[1771729633592,8.91137864,84.992,84.951,6.2014179]
[1771729633792,10.5933,84.994,84.951,6.2014179]
[1771729633990,8.91142003,84.993,84.951,6.2014179]
[1771729634191,8.91142003,84.992,84.951,6.2014179]
[1771729634394,10.5933,84.994,84.951,6.2014179]
[1771729634596,8.91040638,84.993,84.951,6.2014179]
[1771729634896,10.5933,84.994,84.951,6.2014179]
[1771729635194,8.91040638,84.993,84.951,6.2014179]
[1771729635492,10.5933,84.994,84.951,6.2014179]
[1771729644397,3.54462154,84.99,84.951,6.2014179]
[1771729666113,8.91709876,84.989,84.951,6.2014179]
[1771729666313,3.54462154,84.99,84.951,6.2014179]
[1771729666514,8.91728517,84.989,84.951,6.2014179]
[1771729666715,3.54462154,84.99,84.951,6.2014179]
[1771729666914,8.91728517,84.989,84.951,6.2014179]
[1771729667113,3.54462154,84.99,84.951,6.2014179]
[1771729667308,8.91885643,84.989,84.951,6.2014179]
[1771729667509,3.54462154,84.99,84.951,6.2014179]
[1771729667707,8.91885643,84.989,84.951,6.2014179]
[1771729667908,3.54462154,84.99,84.951,6.2014179]
[1771729668115,8.91162734,84.989,84.951,6.2014179]
[1771729668308,8.91162734,84.988,84.951,6.2014179]
[1771729668507,3.54462154,84.99,84.951,6.2014179]
[1771729668709,8.91443785,84.989,84.951,6.2014179]
[1771729668914,8.91443785,84.988,84.951,6.2014179]
[1771729669218,8.9166487,84.987,84.951,6.2014179]
[1771729669512,3.54462154,84.99,84.951,6.2014179]
[1771729669717,8.91664243,84.989,84.951,6.2014179]
[1771729670017,8.91664243,84.988,84.951,6.2014179]
[1771729670218,8.91664243,84.987,84.951,6.2014179]
[1771729670519,8.91664243,84.986,84.951,6.2014179]
[1771729670817,3.54462154,84.99,84.951,6.2014179]
[1771729671018,8.91943218,84.989,84.951,6.2014179]
[1771729671315,8.91943218,84.988,84.951,6.2014179]
[1771729671516,8.91943218,84.987,84.951,6.2014179]
[1771729671817,8.91943218,84.986,84.951,6.2014179]
[1771729672116,8.91943218,84.985,84.951,6.2014179]
[1771729672315,8.91943218,84.984,84.951,6.2014179]
[1771729672510,3.54462154,84.99,84.951,6.2014179]
[1771729672715,8.92657546,84.989,84.951,6.2014179]
[1771729672916,8.92657546,84.988,84.951,6.2014179]
[1771729673114,8.92657546,84.987,84.951,6.2014179]
[1771729673309,8.92657546,84.986,84.951,6.2014179]
[1771729673513,8.92657546,84.985,84.951,6.2014179]
[1771729673710,8.92657546,84.984,84.951,6.2014179]
[1771729673921,8.92657546,84.983,84.951,6.2014179]
[1771729674220,8.93434136,84.982,84.951,6.2014179]
[1771729674415,3.54462154,84.99,84.951,6.2014179]
[1771729674416,8.93434136,84.981,84.951,6.2014179]
[1771729674616,3.54462154,84.99,84.951,6.2014179]
[1771729674817,8.93434136,84.989,84.951,6.2014179]
[1771729675016,8.93434136,84.988,84.951,6.2014179]
[1771729675319,8.93434136,84.987,84.951,6.2014179]
[1771729675519,8.93434136,84.986,84.951,6.2014179]
[1771729675720,8.93434136,84.985,84.951,6.2014179]
[1771729675917,8.93434136,84.984,84.951,6.2014179]
[1771729676221,453.54759168,85.002,84.951,6.2014179]
[1771729677122,4.21216353,84.999,84.951,6.2014179]
[1771729682024,4.21216353,84.999,84.95,3.54462154]
[1771729682025,4.21216353,84.999,84.953,4.51086231]
[1771729682229,3.54462154,85.0,84.953,4.51086231]
[1771729682421,453.54759168,85.002,84.953,4.51086231]
[1771729682722,453.54759168,85.002,84.913,35.3]
[1771729682723,453.54759168,85.002,84.961,4.51086231]
[1771729682925,453.54759168,85.002,84.963,4.51086231]
[1771729683123,4.21216353,85.009,84.963,4.51086231]
[1771729683419,4.21216353,85.019,84.971,4.51086231]
[1771729685126,4.21216353,85.019,84.973,4.51086231]
[1771729688231,3.54462154,85.01,84.973,4.51086231]
[1771729688426,4.21216353,85.019,84.973,4.51086231]
[1771729688630,4.44572951,85.009,84.973,4.51086231]
[1771729722063,10.95991664,85.03,84.973,4.51086231]
[1771729722370,4.12895641,85.009,84.961,4.30619532]
[1771729724269,4.12895641,85.027,84.967,4.30619532]
[1771729724475,10.95991664,85.03,84.913,164.9392]
[1771729724476,4.12895641,85.025,84.971,4.30619532]
[1771729725372,4.12895641,85.025,84.981,4.30619532]
[1771729731574,4.12895641,85.043,84.981,4.30619532]
[1771729731773,4.12895641,85.043,84.946,22.09025423]
[1771729731774,4.12895641,85.057,85.011,4.30619532]
[1771729731980,10.5832,85.075,85.011,4.30619532]
[1771729731981,4.12895641,85.049,85.011,4.30619532]
[1771729737180,11.72030921,85.083,84.993,4.30619532]
[1771729737181,4.12895641,85.029,84.993,4.30619532]
[1771729741175,4.12895641,85.029,84.968,10.5963]
[1771729741176,3.54345849,85.01,84.971,4.30619532]
[1771729741974,4.12895641,85.035,84.991,4.30619532]
[1771729742181,3.54345849,85.04,84.991,4.30619532]
[1771729742481,10.95991664,85.066,85.007,4.30619532]
[1771729742772,4.12895641,85.059,85.011,4.30619532]
[1771729743173,251.2791844,85.058,85.011,4.30619532]
[1771729743573,4.12895641,85.057,85.011,4.30619532]
[1771729744575,247.15022799,85.058,85.011,4.30619532]
[1771729750385,251.31792427,85.058,85.011,4.30619532]
[1771729753292,4.01452689,85.057,85.011,4.30619532]
[1771729754085,3.53953397,85.05,85.011,4.30619532]
[1771729756089,4.01452689,85.057,85.011,4.30619532]
[1771729756282,3.53953397,85.05,85.011,4.30619532]
[1771729760284,4.01452689,85.057,85.011,4.30619532]
[1771729763492,3.53953397,85.05,85.011,4.30619532]
[1771729764387,4.01452689,85.057,85.011,4.30619532]
[1771729766093,247.15022799,85.058,85.015,3.93247805]
[1771729766594,251.16475488,85.058,85.015,3.93247805]
[1771729766896,4.01452689,85.057,85.015,3.93247805]
[1771729771899,4.01452689,85.049,85.015,3.93247805]
[1771729799508,4.01452689,85.049,85.006,3.82077372]
[1771729799711,4.08716487,85.039,85.006,3.82077372]
[1771729801214,4.08716487,85.039,84.99,3.53953397]
[1771729801215,4.08716487,85.039,84.996,3.82077372]
[1771729801509,4.08716487,85.029,84.981,3.82077372]
[1771729802014,4.08716487,85.009,84.973,22.01476863]
[1771729802209,4.08716487,85.009,84.971,3.82077372]
[1771729809223,3.93381128,85.032,84.981,4.09169815]
[1771729812033,3.54153904,85.03,84.981,4.09169815]
[1771729812233,3.93381128,85.032,84.991,3.730747]
[1771729813528,3.73203252,85.029,84.991,3.730747]
[1771729813736,3.73203252,85.029,84.981,3.730747]
[1771729821237,247.15022799,85.058,84.97,3.730747]
[1771729821238,3.54153904,85.01,84.97,3.730747]
[1771729821445,3.73203252,85.009,84.961,3.730747]
[1771729824748,3.73203252,84.989,84.95,3.730747]
[1771729826948,3.73203252,84.989,84.946,22.09025423]
[1771729827144,3.73203252,84.979,84.946,22.09025423]
[1771729837365,3.73203252,84.979,84.947,3.730747]
[1771729860581,3.87683802,84.989,84.95,3.54153904]
[1771729860886,3.87683802,84.989,84.951,3.98217259]
[1771729861381,10.5912,85.01,84.961,3.98217259]
[1771729861582,3.87683802,85.011,84.961,3.98217259]
[1771729861782,3.87683802,85.011,84.971,3.98217259]
[1771729862388,3.87683802,85.026,84.981,3.98217259]
[1771729862688,3.87683802,85.026,84.991,3.98217259]
[1771729862889,3.87683802,85.038,84.991,3.98217259]
[1771729863390,3.87683802,85.036,84.991,3.98217259]
[1771729869481,3.54153904,85.03,84.991,3.98217259]
[1771729871993,3.54181775,85.03,84.991,3.98217259]
[1771729875192,3.87683802,85.036,84.991,3.98217259]
[1771729875895,3.91631373,85.032,84.991,3.98217259]
[1771729876299,3.54181775,85.03,84.991,3.98217259]
[1771729879394,3.54181775,85.03,84.928,35.33]
[1771729879395,3.91631373,85.051,85.011,4.00153901]
[1771729883304,3.91631373,85.059,85.011,4.00153901]
[1771729885902,251.05523245,85.065,85.021,4.00153901]
[1771729886214,251.05523245,85.065,84.991,4.00153901]
[1771729886215,3.91631373,85.049,84.991,4.00153901]
[1771729886907,3.91631373,85.049,85.001,4.00153901]
[1771729894112,3.91631373,85.059,85.001,4.00153901]
[1771729894308,3.91631373,85.059,85.011,4.00153901]
[1771729894507,251.05523245,85.065,85.011,4.00153901]
[1771729897817,3.815025,85.049,85.011,4.00153901]
[1771729900115,3.54181775,85.05,85.011,4.00153901]
[1771729900315,3.815025,85.059,85.011,4.00153901]
[1771729902812,3.54181775,85.05,85.011,4.00153901]
[1771729906717,3.815025,85.049,85.011,4.00153901]
[1771729914724,3.54181775,85.05,85.011,4.00153901]
[1771729914922,3.815025,85.057,85.011,4.00153901]
[1771729917023,251.05523245,85.065,85.014,3.94752174]
[1771729917525,3.54181775,85.06,85.014,3.94752174]
[1771729921734,3.815025,85.064,85.019,3.94752174]
[1771729922430,3.815025,85.059,85.019,3.94752174]
[1771729924933,3.815025,85.049,85.012,21.89691515]
[1771729925125,3.815025,85.049,85.008,3.94752174]
[1771729925426,7.35684275,85.04,85.008,3.94752174]
[1771729926232,3.815025,85.04,85.008,3.94752174]
[1771729926624,3.54181775,85.06,85.011,3.94752174]
[1771729927025,7.35684275,85.06,85.011,3.94752174]
[1771729927232,3.815025,85.059,85.011,3.94752174]
[1771729928934,3.815025,85.059,85.021,3.89414523]
[1771729930238,3.91374111,85.073,85.031,3.89414523]
[1771729932031,3.88164129,85.069,85.031,3.89414523]
[1771729951262,3.88164129,85.079,85.031,3.89414523]
[1771729956356,3.88164129,85.079,85.02,10.5899]
[1771729956357,3.88164129,85.079,85.041,3.8909927]
[1771729973766,3.85370143,85.088,85.041,3.8909927]
[1771729988969,0.91687837,85.088,85.041,3.8909927]
[1771729989174,3.73548027,85.098,85.054,10.5856]
[1771729991178,3.73548027,85.098,85.055,3.84270961]
[1771729992082,3.73548027,85.098,85.061,3.84847805]
[1771730011602,3.62700058,85.089,85.038,3.84847805]
[1771730011810,3.62700058,85.079,85.038,3.84847805]
[1771730012110,3.62700058,85.069,85.025,3.84847805]
[1771730012306,3.62700058,85.069,85.04,7.38415858]
[1771730012612,458.36730548,85.119,85.05,3.53568053]
[1771730012613,3.62700058,85.089,85.05,3.53568053]
[1771730012811,3.62700058,85.089,85.051,3.84847805]
[1771730032324,3.7918204,85.109,85.051,3.84847805]
[1771730033124,3.7918204,85.107,85.051,3.84847805]
[1771730037130,3.53568053,85.11,85.051,3.84847805]
[1771730037131,3.7918204,85.105,85.051,3.84847805]
[1771730060339,3.78434822,85.103,85.051,3.84847805]
[1771730067947,3.78434822,85.103,85.061,3.73347273]
[1771730086269,3.86225518,85.089,85.05,3.6076522]
[1771730089572,3.86225518,85.059,85.022,3.6076522]
[1771730089769,3.86225518,85.049,85.001,3.6076522]
[1771730089966,3.86225518,85.084,85.031,3.6076522]
[1771730090172,3.86225518,85.082,85.031,3.6076522]
[1771730090564,3.53558792,85.08,85.031,3.6076522]
[1771730090768,3.86225518,85.079,85.031,3.6076522]
[1771730102976,3.86225518,85.099,85.051,3.6076522]
[1771730113990,3.99264549,85.089,85.051,3.6076522]
[1771730123192,3.99264549,85.079,85.023,3.76800643]
[1771730123794,3.99264549,85.069,85.023,3.76800643]
[1771730125094,3.99264549,85.059,85.011,3.76800643]
[1771730126895,3.99264549,85.059,85.021,3.76800643]
[1771730128995,3.99264549,85.091,85.021,3.76800643]
[1771730129192,3.99264549,85.079,85.021,3.76800643]
[1771730131897,3.99264549,85.079,85.031,3.76800643]
[1771730135796,3.99264549,85.079,84.992,29.3410044]
[1771730135797,3.99264549,85.089,85.041,3.76800643]
[1771730135992,21.89641975,85.137,84.996,35.28]
[1771730135993,3.99264549,85.109,85.061,3.76800643]
[1771730149311,3.99264549,85.109,85.06,3.53716654]
[1771730149312,3.97436637,85.122,85.081,3.69219605]
[1771730156224,3.97436637,85.137,85.091,3.69219605]
[1771730158329,3.97436637,85.129,85.091,3.69219605]
[1771730158523,3.53716654,85.13,85.091,3.69219605]
[1771730158827,3.97436637,85.129,85.091,3.69219605]
[1771730160827,3.97436637,85.119,85.079,3.69219605]
[1771730162435,3.97436637,85.119,85.07,7.22936259]
[1771730162630,3.97436637,85.119,85.071,3.69219605]
[1771730164234,3.97436637,85.119,84.971,175.0]
[1771730164235,3.97436637,85.089,85.041,3.69219605]
[1771730164435,7.51153291,85.1,85.051,3.69219605]
[1771730165030,3.97436637,85.099,85.051,3.69219605]
[1771730171026,3.97436637,85.099,85.035,10.588]
[1771730171027,3.88243064,85.109,85.038,3.76381117]
[1771730171226,3.88243064,85.109,85.061,3.76381117]
[1771730172332,3.88243064,85.109,85.009,29.3410044]
[1771730172333,3.66077739,85.099,85.041,3.62152482]
[1771730172836,3.66077739,85.099,85.051,3.62152482]
[1771730174936,3.66077739,85.089,85.04,7.15869136]
[1771730175327,3.66077739,85.089,85.041,3.62152482]
[1771730176436,3.66077739,85.089,85.051,3.62152482]
[1771730177734,3.53698517,85.1,85.051,3.62152482]
[1771730177935,3.66077739,85.101,85.061,3.62152482]
[1771730184542,3.66077739,85.089,85.042,3.62152482]
[1771730185843,3.66077739,85.1,85.061,3.62152482]
[1771730194957,3.66077739,85.119,85.071,3.62152482]
[1771730203069,3.66077739,85.119,85.036,64.6210044]
[1771730203070,3.80645834,85.109,85.061,3.81099469]
[1771730205968,3.80645834,85.099,85.061,3.81099469]
[1771730212876,3.80645834,85.089,85.046,3.81099469]
[1771730213077,3.80645834,85.079,85.034,3.81099469]
[1771730215187,3.80645834,85.079,85.006,29.3410044]
[1771730215188,3.80645834,85.059,85.012,21.92524052]
[1771730215490,3.80645834,85.059,85.013,3.81099469]
[1771730215988,3.80645834,85.059,84.946,2.04519409]
[1771730215989,3.80645834,85.062,85.021,3.81099469]
[1771730217587,3.53698517,85.07,85.021,3.81099469]
[1771730217793,3.80645834,85.069,85.021,3.81099469]
[1771730220789,3.80645834,85.069,85.03,3.53698517]
[1771730220994,3.80645834,85.069,85.021,3.81099469]
[1771730222295,3.80645834,85.079,85.021,3.81099469]
[1771730223697,3.80645834,85.079,85.03,3.53698517]
[1771730224598,3.80645834,85.079,85.031,3.81099469]
[1771730229104,3.80645834,85.079,84.989,29.3410044]
[1771730229105,3.80645834,85.079,85.041,3.73925928]
[1771730231298,3.91884642,85.099,85.051,3.73925928]
[1771730232303,3.86207767,85.089,85.051,3.73925928]
[1771730238109,3.53613569,85.1,85.051,3.73925928]
[1771730238304,3.86207767,85.104,85.06,7.42142968]
[1771730238506,3.86207767,85.104,85.06,3.88529399]
[1771730241907,3.86207767,85.099,85.049,3.88529399]
[1771730242305,3.86207767,85.099,85.05,3.53613569]
[1771730242504,3.53613569,85.1,84.996,35.28]
[1771730242505,3.86207767,85.089,85.041,3.88529399]
[1771730242709,3.86207767,85.089,85.05,3.53613569]
[1771730243210,3.86207767,85.089,84.985,29.3410044]
[1771730243211,3.86207767,85.069,85.03,3.88529399]
[1771730257027,10.94309203,85.109,84.999,3.88529399]
[1771730257028,3.86207767,85.039,84.999,3.88529399]
[1771730258634,3.98972575,85.029,84.981,3.98942182]
[1771730258927,3.53613569,85.01,84.981,3.98942182]
[1771730259130,3.53613569,85.01,84.909,164.9479]
[1771730259131,3.98972575,84.999,84.961,3.98942182]
[1771730259325,3.98972575,84.999,84.945,3.98942182]
[1771730259732,3.53613569,84.99,84.945,3.98942182]
[1771730260028,3.98972575,84.989,84.945,3.98942182]
[1771730260231,3.98972575,84.979,84.931,3.98942182]
[1771730261827,3.98972575,84.999,84.941,3.98942182]
[1771730262727,3.98972575,84.999,84.95,3.53613569]
[1771730262931,3.98972575,84.999,84.941,3.98942182]
[1771730263435,11.47622983,85.036,84.931,3.98942182]
[1771730263436,3.98972575,84.979,84.931,3.98942182]
[1771730264531,3.98972575,84.969,84.92,3.53613569]
[1771730264921,3.98972575,84.969,84.921,3.98942182]
[1771730265331,3.98972575,84.969,84.93,3.53613569]
[1771730267837,3.98972575,84.969,84.921,3.98942182]
[1771730269239,3.98972575,84.969,84.93,3.53613569]
[1771730270526,3.98972575,84.969,84.93,7.52555751]
[1771730271740,3.98972575,84.969,84.93,3.98942182]
[1771730271937,3.98972575,84.969,84.93,7.52555751]
[1771730272944,3.98972575,84.98,84.941,3.98942182]
[1771730273346,3.98972575,84.98,84.94,3.53613569]
[1771730273546,3.98972575,84.98,84.93,3.53613569]
[1771730275444,3.98972575,84.979,84.93,3.53613569]
[1771730275946,3.98972575,84.979,84.931,3.98942182]
[1771730279951,3.98972575,84.978,84.931,3.98942182]
[1771730280548,3.98972575,84.969,84.92,7.52555751]
[1771730283455,3.98972575,84.967,84.92,7.52555751]
[1771730283751,3.98972575,84.967,84.921,3.98942182]
[1771730284157,3.98972575,84.967,84.816,29.3410044]
[1771730284158,3.98972575,84.939,84.904,3.98942182]
[1771730286361,3.98972575,84.935,84.879,2.04910793]
[1771730286657,3.98972575,84.929,84.878,3.98942182]
[1771730286851,3.98972575,84.929,84.88,3.53613569]
[1771730287051,3.98972575,84.929,84.881,3.98942182]
[1771730292851,3.53613569,84.91,84.881,3.98942182]
[1771730293360,3.64507328,84.919,84.881,3.98942182]
[1771730298664,3.64507328,84.899,84.849,3.75241468]
[1771730298868,3.64507328,84.889,84.849,3.75241468]
[1771730299865,7.19952308,84.88,84.831,3.75241468]
[1771730300066,3.64507328,84.879,84.831,3.75241468]
[1771730300459,3.5544498,84.87,84.831,3.75241468]
[1771730302258,10.80547219,84.932,84.809,2.05068371]
[1771730302259,3.64507328,84.922,84.851,3.75241468]
[1771730302463,3.64507328,84.899,84.851,3.75241468]
[1771730305868,3.5544498,84.91,84.809,2.05068371]
[1771730305869,3.64507328,84.91,84.861,3.75241468]
[1771730306464,3.64507328,84.91,84.854,10.6106]
[1771730306465,3.64507328,84.91,84.871,3.75241468]
[1771730307767,3.5544498,84.92,84.871,3.75241468]
[1771730307768,7.19952308,84.92,84.871,3.75241468]
[1771730308367,3.64507328,84.919,84.871,3.75241468]
[1771730319277,3.96355299,84.899,84.852,10.6109]
[1771730319471,3.96355299,84.899,84.853,3.67625546]
[1771730321075,3.96355299,84.917,84.861,3.67625546]
[1771730321475,7.51800279,84.91,84.861,3.67625546]
[1771730322072,3.96355299,84.909,84.861,3.67625546]
[1771730323775,3.5544498,84.9,84.861,3.67625546]
[1771730323975,7.51800279,84.9,84.861,3.67625546]
[1771730324180,3.96355299,84.899,84.861,3.67625546]
[1771730325480,3.96355299,84.889,84.85,3.67625546]
[1771730325881,3.96355299,84.879,84.831,3.67625546]
[1771730327279,7.51800279,84.89,84.831,3.67625546]
[1771730327482,7.51800279,84.89,84.841,3.67625546]
[1771730329384,3.96355299,84.889,84.841,3.67625546]
[1771730332081,3.96355299,84.889,84.843,10.6119]
[1771730332290,3.5544498,84.91,84.861,3.67625546]
[1771730332487,3.96355299,84.912,84.861,3.67625546]
[1771730333681,3.5544498,84.91,84.861,3.67625546]
[1771730334288,3.5544498,84.92,84.871,3.67625546]
[1771730336893,3.96355299,84.919,84.871,3.67625546]